[Event "Live Chess"]
[Site "Chess.com"]
[Date "2024.06.02"]
[Round "-"]
[White "JoeyCage"]
[Black "blunderabit"]
[Result "1-0"]
[WhiteElo "2400"]
[BlackElo "1765"]
[TimeControl "300"]
[EndTime "7:24:44 PDT"]
[Termination "JoeyCage won by resignation"]

1. e4 {[%clk 0:04:57.4]} 1... c5 {[%clk 0:04:57.7]} 2. Nf3 {[%clk 0:04:56.2]}
2... d6 {[%clk 0:04:56.3]} 3. d4 {[%clk 0:04:54.9]} 3... cxd4 {[%clk 0:04:54.7]}
4. Nxd4 {[%clk 0:04:54]} 4... Nf6 {[%clk 0:04:53.3]} 5. Nc3 {[%clk 0:04:52.6]}
5... a6 {[%clk 0:04:52.7]} 6. Bc4 {[%clk 0:04:51.3]} 6... e6 {[%clk 0:04:50]} 7.
Bb3 {[%clk 0:04:50.2]} 7... b5 {[%clk 0:04:48.4]} 8. a3 {[%clk 0:04:48.3]} 8...
Be7 {[%clk 0:04:45.5]} 9. g4 {[%clk 0:04:46.4]} 9... h6 {[%clk 0:04:42.5]} 10.
h4 {[%clk 0:04:44.4]} 10... Qc7 {[%clk 0:04:32.6]} 11. Rg1 {[%clk 0:04:39.2]}
11... Bb7 {[%clk 0:04:26]} 12. Qd3 {[%clk 0:04:30.9]} 12... Nc6 {[%clk
0:04:12.2]} 13. g5 {[%clk 0:04:25.7]} 13... hxg5 {[%clk 0:04:08]} 14. hxg5
{[%clk 0:04:24.3]} 14... Nd7 {[%clk 0:03:55.4]} 15. Bxe6 {[%clk 0:04:21.4]}
15... Nxd4 {[%clk 0:03:43.2]} 16. Bxd7+ {[%clk 0:04:19.6]} 16... Qxd7 {[%clk
0:03:39.4]} 17. Qxd4 {[%clk 0:04:18.7]} 17... Rg8 {[%clk 0:03:21]} 18. Bf4
{[%clk 0:04:16.2]} 18... O-O-O {[%clk 0:03:06.6]} 19. O-O-O {[%clk 0:04:11.8]}
19... Kb8 {[%clk 0:03:05.1]} 20. Be3 {[%clk 0:04:09.3]} 20... Bc6 {[%clk
0:03:00.2]} 21. Nd5 {[%clk 0:04:05.1]} 21... Bxd5 {[%clk 0:02:54.3]} 22. Qxd5
{[%clk 0:04:03.3]} 22... Rgf8 {[%clk 0:02:45.5]} 23. Rd2 {[%clk 0:03:55.5]}
23... Rc8 {[%clk 0:02:39.5]} 24. Rgd1 {[%clk 0:03:52.7]} 24... Qc6 {[%clk
0:02:32.2]} 25. Bf4 {[%clk 0:03:46.3]} 25... Qxd5 {[%clk 0:02:28.2]} 26. Rxd5
{[%clk 0:03:44.1]} 26... Rc4 {[%clk 0:02:12.6]} 27. f3 {[%clk 0:03:41.5]} 27...
Rfc8 {[%clk 0:02:07.3]} 28. c3 {[%clk 0:03:39.2]} 28... R4c5 {[%clk 0:01:38.8]}
29. Rxd6 {[%clk 0:03:31.7]} 29... Bxg5 {[%clk 0:01:18.5]} 30. Bxg5 {[%clk
0:03:20.8]} 30... Rxg5 {[%clk 0:01:16.9]} 31. Rxa6 {[%clk 0:03:19.8]} 31... Rg3
{[%clk 0:00:59.1]} 32. Rd3 {[%clk 0:03:16.9]} 32... Kb7 {[%clk 0:00:48.2]} 33.
Rad6 {[%clk 0:03:14.6]} 33... Rc7 {[%clk 0:00:44.6]} 34. Kc2 {[%clk 0:03:11.1]}
34... g5 {[%clk 0:00:37.2]} 35. Kb3 {[%clk 0:03:07.2]} 35... g4 {[%clk
0:00:35.9]} 36. fxg4 {[%clk 0:03:01.9]} 36... Rxg4 {[%clk 0:00:34.8]} 37. e5
{[%clk 0:02:59.7]} 37... Rc5 {[%clk 0:00:25.4]} 38. Rd7+ {[%clk 0:02:53.4]}
38... Kc8 {[%clk 0:00:20]} 39. Rd8+ {[%clk 0:02:51.6]} 39... Kc7 {[%clk
0:00:16.3]} 40. R3d7+ {[%clk 0:02:49.9]} 40... Kc6 {[%clk 0:00:14.7]} 41. Rd6+
{[%clk 0:02:47.8]} 41... Kc7 {[%clk 0:00:12.6]} 42. R8d7+ {[%clk 0:02:46.6]}
42... Kc8 {[%clk 0:00:11.1]} 43. Rxf7 {[%clk 0:02:44.9]} 43... Rxe5 {[%clk
0:00:09.4]} 44. Ra6 {[%clk 0:02:42.7]} 44... Kb8 {[%clk 0:00:04.5]} 45. Rh6
{[%clk 0:02:35.5]} 1-0

[Event "Live Chess"]
[Site "Chess.com"]
[Date "2024.06.02"]
[Round "-"]
[White "Inglaterra"]
[Black "Pablo_dmp"]
[Result "1/2-1/2"]
[WhiteElo "2048"]
[BlackElo "1985"]
[TimeControl "300"]
[EndTime "7:24:48 PDT"]
[Termination "Game drawn by repetition"]

1. e4 {[%clk 0:04:57.9]} 1... c5 {[%clk 0:04:59.9]} 2. Nf3 {[%clk 0:04:56.6]}
2... Nc6 {[%clk 0:04:59.8]} 3. Bb5 {[%clk 0:04:54.5]} 3... Nd4 {[%clk
0:04:58.9]} 4. Nxd4 {[%clk 0:04:49.1]} 4... cxd4 {[%clk 0:04:58.8]} 5. O-O
{[%clk 0:04:47.6]} 5... a6 {[%clk 0:04:58]} 6. Bc4 {[%clk 0:04:46.1]} 6... Nf6
{[%clk 0:04:57]} 7. d3 {[%clk 0:04:44.7]} 7... d5 {[%clk 0:04:54.5]} 8. exd5
{[%clk 0:04:42.4]} 8... Nxd5 {[%clk 0:04:54.4]} 9. Re1 {[%clk 0:04:35.7]} 9...
Be6 {[%clk 0:04:52.9]} 10. Nd2 {[%clk 0:04:29.1]} 10... g6 {[%clk 0:04:50.3]}
11. Ne4 {[%clk 0:04:25.7]} 11... Bg7 {[%clk 0:04:48.8]} 12. Qf3 {[%clk 0:04:04]}
12... O-O {[%clk 0:04:47.1]} 13. Ng5 {[%clk 0:03:41.3]} 13... Qd6 {[%clk
0:04:33.1]} 14. Nxe6 {[%clk 0:03:36.2]} 14... fxe6 {[%clk 0:04:33]} 15. Qe4
{[%clk 0:03:31.9]} 15... b5 {[%clk 0:04:24.9]} 16. Bxd5 {[%clk 0:03:28.1]} 16...
Qxd5 {[%clk 0:04:18.4]} 17. Qxd5 {[%clk 0:03:26.5]} 17... exd5 {[%clk
0:04:17.4]} 18. Rxe7 {[%clk 0:03:25]} 18... Rae8 {[%clk 0:04:15.8]} 19. Rxe8
{[%clk 0:03:12.5]} 19... Rxe8 {[%clk 0:04:15.7]} 20. Kf1 {[%clk 0:03:10.6]}
20... Be5 {[%clk 0:04:13.2]} 21. a4 {[%clk 0:02:59.9]} 21... b4 {[%clk 0:04:11]}
22. a5 {[%clk 0:02:56.8]} 22... Rc8 {[%clk 0:04:09.7]} 23. Bd2 {[%clk
0:02:49.7]} 23... Rxc2 {[%clk 0:04:08.9]} 24. Bxb4 {[%clk 0:02:48.9]} 24... Rxb2
{[%clk 0:04:07.4]} 25. Bc5 {[%clk 0:02:40.6]} 25... Rd2 {[%clk 0:04:05.7]} 26.
Re1 {[%clk 0:02:26.5]} 26... Bf6 {[%clk 0:04:01.6]} 27. Re6 {[%clk 0:02:23.6]}
27... Kf7 {[%clk 0:03:59.1]} 28. Rxa6 {[%clk 0:02:21.7]} 28... Rxd3 {[%clk
0:03:57.9]} 29. Rd6 {[%clk 0:02:13.7]} 29... Rc3 {[%clk 0:03:55.8]} 30. Rxd5
{[%clk 0:02:07.6]} 30... d3 {[%clk 0:03:54.6]} 31. Ke1 {[%clk 0:01:52]} 31...
Bg7 {[%clk 0:03:48.4]} 32. Bd4 {[%clk 0:01:24.2]} 32... Bxd4 {[%clk 0:03:36]}
33. Rxd4 {[%clk 0:01:24.1]} 33... Ra3 {[%clk 0:03:35.6]} 34. Kd2 {[%clk
0:01:18.1]} 34... Rxa5 {[%clk 0:03:19.5]} 35. Rxd3 {[%clk 0:01:17.5]} 35... Ra2+
{[%clk 0:03:17.9]} 36. Ke3 {[%clk 0:01:16.8]} 36... Ra6 {[%clk 0:03:15.8]} 37.
g4 {[%clk 0:01:16]} 37... Re6+ {[%clk 0:03:12.7]} 38. Kf4 {[%clk 0:01:14.9]}
38... Kg7 {[%clk 0:03:10.4]} 39. h4 {[%clk 0:01:13.7]} 39... Re7 {[%clk
0:03:09.3]} 40. Rd5 {[%clk 0:01:12.1]} 40... h6 {[%clk 0:03:04.9]} 41. Rd6
{[%clk 0:01:10.3]} 41... Rf7+ {[%clk 0:03:01.5]} 42. Kg3 {[%clk 0:01:09.2]}
42... g5 {[%clk 0:02:56.8]} 43. h5 {[%clk 0:01:01.7]} 43... Re7 {[%clk 0:02:50]}
44. f3 {[%clk 0:00:56.2]} 44... Rf7 {[%clk 0:02:48.3]} 45. Re6 {[%clk
0:00:55.2]} 45... Kh7 {[%clk 0:02:46.8]} 46. Kf2 {[%clk 0:00:54.7]} 46... Kg7
{[%clk 0:02:36.9]} 47. Ke3 {[%clk 0:00:53.9]} 47... Kh7 {[%clk 0:02:34.6]} 48.
Re5 {[%clk 0:00:51.7]} 48... Kg7 {[%clk 0:02:32.4]} 49. Ke4 {[%clk 0:00:50.8]}
49... Rf4+ {[%clk 0:02:30.7]} 50. Ke3 {[%clk 0:00:49.6]} 50... Rf7 {[%clk
0:02:29.5]} 51. Rf5 {[%clk 0:00:48.4]} 51... Re7+ {[%clk 0:02:27.7]} 52. Kd4
{[%clk 0:00:47.2]} 52... Rd7+ {[%clk 0:02:26]} 53. Ke5 {[%clk 0:00:46.4]} 53...
Re7+ {[%clk 0:02:23.5]} 54. Kd6 {[%clk 0:00:45.8]} 54... Re3 {[%clk 0:02:20.8]}
55. Kd5 {[%clk 0:00:38.8]} 55... Re7 {[%clk 0:02:18.1]} 56. Re5 {[%clk
0:00:37.2]} 56... Rf7 {[%clk 0:02:16.6]} 57. Ke4 {[%clk 0:00:36.5]} 57... Rf4+
{[%clk 0:02:12.2]} 58. Ke3 {[%clk 0:00:35.8]} 58... Rf7 {[%clk 0:02:10.2]}
1/2-1/2

[Event "Live Chess"]
[Site "Chess.com"]
[Date "2024.06.02"]
[Round "-"]
[White "degringolade64"]
[Black "Dashman93"]
[Result "1-0"]
[WhiteElo "2081"]
[BlackElo "2134"]
[TimeControl "300"]
[EndTime "7:24:49 PDT"]
[Termination "degringolade64 won by resignation"]

1. e4 {[%clk 0:04:56.9]} 1... e5 {[%clk 0:04:58.8]} 2. Nf3 {[%clk 0:04:56.4]}
2... Nc6 {[%clk 0:04:58]} 3. Bc4 {[%clk 0:04:55.3]} 3... Nf6 {[%clk 0:04:57]} 4.
d3 {[%clk 0:04:53.1]} 4... Bc5 {[%clk 0:04:56]} 5. Nc3 {[%clk 0:04:50.4]} 5...
d6 {[%clk 0:04:55.4]} 6. Na4 {[%clk 0:04:48.4]} 6... Na5 {[%clk 0:04:50.9]} 7.
Nxc5 {[%clk 0:04:31.5]} 7... Nxc4 {[%clk 0:04:49.2]} 8. dxc4 {[%clk 0:04:14.4]}
8... dxc5 {[%clk 0:04:48.1]} 9. Qxd8+ {[%clk 0:04:13.1]} 9... Kxd8 {[%clk
0:04:48]} 10. Bg5 {[%clk 0:04:08.3]} 10... h6 {[%clk 0:04:39.5]} 11. O-O-O+
{[%clk 0:04:01.1]} 11... Ke7 {[%clk 0:04:38]} 12. Bh4 {[%clk 0:03:50.6]} 12...
g5 {[%clk 0:04:34.9]} 13. Bg3 {[%clk 0:03:49.4]} 13... Nxe4 {[%clk 0:04:29.2]}
14. Bxe5 {[%clk 0:03:45.3]} 14... f6 {[%clk 0:04:26]} 15. Rhe1 {[%clk 0:03:40]}
15... Nxf2 {[%clk 0:04:23.3]} 16. Bg3+ {[%clk 0:03:35.5]} 1-0

[Event "Live Chess"]
[Site "Chess.com"]
[Date "2024.06.02"]
[Round "-"]
[White "ClassyChameleon"]
[Black "GerardATHart"]
[Result "0-1"]
[WhiteElo "1535"]
[BlackElo "1404"]
[TimeControl "300"]
[EndTime "7:24:56 PDT"]
[Termination "GerardATHart won by resignation"]

1. e4 {[%clk 0:04:56.2]} 1... e5 {[%clk 0:04:57.4]} 2. Nf3 {[%clk 0:04:55.5]}
2... Nc6 {[%clk 0:04:53.4]} 3. c3 {[%clk 0:04:54.8]} 3... Nf6 {[%clk 0:04:51.5]}
4. d4 {[%clk 0:04:53.9]} 4... exd4 {[%clk 0:04:50.4]} 5. e5 {[%clk 0:04:53.6]}
5... Ne4 {[%clk 0:04:48.8]} 6. cxd4 {[%clk 0:04:53.2]} 6... d5 {[%clk
0:04:47.5]} 7. Bb5 {[%clk 0:04:50.6]} 7... Be7 {[%clk 0:04:30.8]} 8. O-O {[%clk
0:04:49.2]} 8... O-O {[%clk 0:04:29]} 9. Nc3 {[%clk 0:04:43]} 9... Bg4 {[%clk
0:04:26]} 10. h3 {[%clk 0:04:38.1]} 10... Bh5 {[%clk 0:04:23.7]} 11. Qd3 {[%clk
0:04:32.5]} 11... Nb4 {[%clk 0:04:18.2]} 12. Qe2 {[%clk 0:04:16.1]} 12... Bxf3
{[%clk 0:04:02.1]} 13. Qxf3 {[%clk 0:04:12.6]} 13... Nc2 {[%clk 0:03:59.8]} 14.
Rb1 {[%clk 0:04:04.2]} 14... Nxd4 {[%clk 0:03:55.5]} 15. Qd3 {[%clk 0:03:55.4]}
15... Nxb5 {[%clk 0:03:52.4]} 16. Nxb5 {[%clk 0:03:52.6]} 16... c6 {[%clk
0:03:51]} 17. Nd4 {[%clk 0:03:48.6]} 17... a6 {[%clk 0:03:45.6]} 18. Be3 {[%clk
0:03:42.1]} 18... f5 {[%clk 0:03:34.8]} 19. Ne6 {[%clk 0:03:33.5]} 19... Qd7
{[%clk 0:03:32.8]} 20. Nxf8 {[%clk 0:03:32.7]} 20... Rxf8 {[%clk 0:03:31]} 21.
Bf4 {[%clk 0:03:29.9]} 21... g5 {[%clk 0:03:23.5]} 22. Bh2 {[%clk 0:03:28.2]}
22... f4 {[%clk 0:03:20.1]} 23. Rfe1 {[%clk 0:03:23.5]} 23... Qf5 {[%clk
0:03:08.9]} 24. Qd4 {[%clk 0:02:57.5]} 24... Bc5 {[%clk 0:03:05.6]} 25. Qd3
{[%clk 0:02:35.8]} 25... Nxf2 {[%clk 0:02:58.9]} 26. Qxf5 {[%clk 0:02:33]} 26...
Rxf5 {[%clk 0:02:54.8]} 27. Re2 {[%clk 0:02:09.4]} 27... Nxh3+ {[%clk
0:02:40.4]} 28. Kh1 {[%clk 0:02:06.1]} 28... Nf2+ {[%clk 0:02:38.8]} 29. Kg1
{[%clk 0:02:05.1]} 29... Nd3+ {[%clk 0:02:35.6]} 30. Kh1 {[%clk 0:02:03.3]}
30... Nxe5 {[%clk 0:02:32.3]} 31. Rc1 {[%clk 0:01:58.5]} 31... Bd6 {[%clk
0:02:30.5]} 32. Rce1 {[%clk 0:01:55]} 32... Kf7 {[%clk 0:02:26.4]} 33. a3 {[%clk
0:01:47.9]} 33... Kf6 {[%clk 0:02:24.4]} 34. b4 {[%clk 0:01:35]} 34... g4 {[%clk
0:02:19.2]} 35. Bg1 {[%clk 0:01:24.6]} 35... Rh5+ {[%clk 0:02:15.4]} 36. Bh2
{[%clk 0:01:22.2]} 36... g3 {[%clk 0:02:14]} 37. Kg1 {[%clk 0:01:07.3]} 37...
gxh2+ {[%clk 0:02:12.2]} 38. Kh1 {[%clk 0:01:05.9]} 38... Ng4 {[%clk 0:01:41.2]}
39. Re6+ {[%clk 0:01:01.9]} 39... Kf5 {[%clk 0:01:35.5]} 40. R1e2 {[%clk
0:00:59.6]} 40... Nf2+ {[%clk 0:01:32.9]} 41. Rxf2 {[%clk 0:00:57.2]} 41... Kxe6
{[%clk 0:01:31.6]} 42. Rxf4 {[%clk 0:00:56.6]} 42... Bxf4 {[%clk 0:01:29.7]} 43.
g3 {[%clk 0:00:56]} 43... Bxg3 {[%clk 0:01:28.3]} 0-1

[Event "Live Chess"]
[Site "Chess.com"]
[Date "2024.06.02"]
[Round "-"]
[White "jimwad"]
[Black "gmnorfolk"]
[Result "0-1"]
[WhiteElo "1332"]
[BlackElo "2159"]
[TimeControl "300"]
[EndTime "7:25:21 PDT"]
[Termination "gmnorfolk won by resignation"]

1. d4 {[%clk 0:04:59.2]} 1... Nf6 {[%clk 0:04:57.7]} 2. c4 {[%clk 0:04:58.4]}
2... g6 {[%clk 0:04:56.2]} 3. Nc3 {[%clk 0:04:58]} 3... d5 {[%clk 0:04:55.8]} 4.
e3 {[%clk 0:04:56.2]} 4... Bg7 {[%clk 0:04:54.2]} 5. Nf3 {[%clk 0:04:55.3]} 5...
O-O {[%clk 0:04:53.5]} 6. Bd3 {[%clk 0:04:53.7]} 6... c5 {[%clk 0:04:51.6]} 7.
dxc5 {[%clk 0:04:51.3]} 7... Nc6 {[%clk 0:04:45.7]} 8. cxd5 {[%clk 0:04:49.9]}
8... Nxd5 {[%clk 0:04:44.6]} 9. O-O {[%clk 0:04:43.8]} 9... Nxc3 {[%clk
0:04:42.5]} 10. bxc3 {[%clk 0:04:42.7]} 10... Bxc3 {[%clk 0:04:41.6]} 11. Bb5
{[%clk 0:04:38.9]} 11... Qxd1 {[%clk 0:04:39.2]} 12. Rxd1 {[%clk 0:04:37.5]}
12... Bxa1 {[%clk 0:04:38.7]} 0-1

[Event "Live Chess"]
[Site "Chess.com"]
[Date "2024.06.02"]
[Round "-"]
[White "kylet1990"]
[Black "JanMur7"]
[Result "0-1"]
[WhiteElo "750"]
[BlackElo "2295"]
[TimeControl "300"]
[EndTime "7:25:26 PDT"]
[Termination "JanMur7 won by resignation"]

1. e4 {[%clk 0:04:58.7]} 1... g6 {[%clk 0:04:58.6]} 2. d4 {[%clk 0:04:57]} 2...
Bg7 {[%clk 0:04:57.1]} 3. Nf3 {[%clk 0:04:55.2]} 3... c5 {[%clk 0:04:56.6]} 4.
d5 {[%clk 0:04:53]} 4... d6 {[%clk 0:04:55.5]} 5. Nc3 {[%clk 0:04:51.1]} 5...
Nf6 {[%clk 0:04:54.8]} 6. Bb5+ {[%clk 0:04:47.8]} 6... Bd7 {[%clk 0:04:52.9]} 7.
Qd3 {[%clk 0:04:43.8]} 7... O-O {[%clk 0:04:51.4]} 8. Bg5 {[%clk 0:04:39.5]}
8... a6 {[%clk 0:04:48.8]} 9. Bxd7 {[%clk 0:04:37.8]} 9... Nbxd7 {[%clk
0:04:48.7]} 10. Bxf6 {[%clk 0:04:36.4]} 10... Nxf6 {[%clk 0:04:47]} 11. O-O-O
{[%clk 0:04:32.4]} 11... b5 {[%clk 0:04:45.7]} 12. b3 {[%clk 0:04:24.6]} 12...
c4 {[%clk 0:04:40.2]} 13. bxc4 {[%clk 0:04:21]} 13... bxc4 {[%clk 0:04:40.1]}
14. Qxc4 {[%clk 0:04:19.2]} 14... Rc8 {[%clk 0:04:38.6]} 15. Qd3 {[%clk
0:04:16.8]} 15... Qa5 {[%clk 0:04:35.5]} 16. Kd2 {[%clk 0:04:13]} 16... Rxc3
{[%clk 0:04:31.8]} 17. Qxc3 {[%clk 0:04:10.4]} 17... Nxe4+ {[%clk 0:04:30.8]}
0-1

[Event "Live Chess"]
[Site "Chess.com"]
[Date "2024.06.02"]
[Round "-"]
[White "Queensandpawns"]
[Black "silunn"]
[Result "1-0"]
[WhiteElo "2286"]
[BlackElo "2090"]
[TimeControl "300"]
[EndTime "7:25:33 PDT"]
[Termination "Queensandpawns won by resignation"]

1. e4 {[%clk 0:04:59.3]} 1... e6 {[%clk 0:04:59.4]} 2. d4 {[%clk 0:04:57.1]}
2... d5 {[%clk 0:04:59.1]} 3. Nd2 {[%clk 0:04:57]} 3... c5 {[%clk 0:04:57]} 4.
exd5 {[%clk 0:04:55.8]} 4... exd5 {[%clk 0:04:56]} 5. dxc5 {[%clk 0:04:55.7]}
5... Bxc5 {[%clk 0:04:54.6]} 6. Ngf3 {[%clk 0:04:55.6]} 6... Nc6 {[%clk
0:04:54]} 7. Bd3 {[%clk 0:04:55.5]} 7... Nge7 {[%clk 0:04:52.8]} 8. O-O {[%clk
0:04:55.4]} 8... Bg4 {[%clk 0:04:52]} 9. h3 {[%clk 0:04:54.2]} 9... Bh5 {[%clk
0:04:50.8]} 10. Re1 {[%clk 0:04:53.8]} 10... O-O {[%clk 0:04:43.1]} 11. c3
{[%clk 0:04:51.2]} 11... Rc8 {[%clk 0:04:34.4]} 12. Qc2 {[%clk 0:04:48.2]} 12...
Bg6 {[%clk 0:04:15.7]} 13. Bxg6 {[%clk 0:04:44.4]} 13... Nxg6 {[%clk 0:04:12.9]}
14. Qd3 {[%clk 0:04:44.3]} 14... Re8 {[%clk 0:04:02.1]} 15. Nb3 {[%clk
0:04:40.8]} 15... Rxe1+ {[%clk 0:03:50.3]} 16. Nxe1 {[%clk 0:04:40.7]} 16... Qe7
{[%clk 0:03:32.6]} 17. Nf3 {[%clk 0:04:36.5]} 17... Bb6 {[%clk 0:03:23.3]} 18.
Bg5 {[%clk 0:04:34.8]} 18... Qd6 {[%clk 0:02:58.1]} 19. Rd1 {[%clk 0:04:32.7]}
19... Nce7 {[%clk 0:02:56.2]} 20. c4 {[%clk 0:04:21.1]} 20... f6 {[%clk
0:02:52]} 21. Be3 {[%clk 0:04:11.9]} 21... Bxe3 {[%clk 0:02:45.4]} 22. fxe3
{[%clk 0:04:11.8]} 22... Qb6 {[%clk 0:02:16.8]} 23. cxd5 {[%clk 0:04:08.6]}
23... Rd8 {[%clk 0:02:15.4]} 24. d6 {[%clk 0:04:07.9]} 24... Nc6 {[%clk
0:02:02.6]} 25. Qd5+ {[%clk 0:04:04.9]} 25... Kh8 {[%clk 0:02:01.1]} 26. Nc5
{[%clk 0:04:00.6]} 26... Qxb2 {[%clk 0:01:53.3]} 27. d7 {[%clk 0:03:54.7]} 27...
Nge5 {[%clk 0:01:31.2]} 28. Nxe5 {[%clk 0:03:40]} 28... Nxe5 {[%clk 0:01:28.8]}
29. Qe6 {[%clk 0:03:35.7]} 1-0

[Event "Live Chess"]
[Site "Chess.com"]
[Date "2024.06.02"]
[Round "-"]
[White "bonantagulo"]
[Black "Purple1szed"]
[Result "1-0"]
[WhiteElo "2233"]
[BlackElo "2002"]
[TimeControl "300"]
[EndTime "7:25:39 PDT"]
[Termination "bonantagulo won by checkmate"]

1. d4 {[%clk 0:04:54.1]} 1... d5 {[%clk 0:04:59.1]} 2. c4 {[%clk 0:04:53.4]}
2... c6 {[%clk 0:04:58.6]} 3. Nc3 {[%clk 0:04:52.3]} 3... dxc4 {[%clk
0:04:57.5]} 4. e4 {[%clk 0:04:21.8]} 4... Nf6 {[%clk 0:04:50.2]} 5. Bxc4 {[%clk
0:04:15.2]} 5... Bg4 {[%clk 0:04:43.8]} 6. Qb3 {[%clk 0:04:04.1]} 6... e6 {[%clk
0:04:39.6]} 7. Qxb7 {[%clk 0:03:57.7]} 7... Nbd7 {[%clk 0:04:38.3]} 8. Bg5
{[%clk 0:03:23.1]} 8... Rb8 {[%clk 0:04:34.8]} 9. Qxc6 {[%clk 0:03:11]} 9... Be7
{[%clk 0:04:34]} 10. e5 {[%clk 0:02:56.7]} 10... Ng8 {[%clk 0:04:27.2]} 11. Bxe7
{[%clk 0:01:57.7]} 11... Nxe7 {[%clk 0:04:27.1]} 12. Qe4 {[%clk 0:01:53.5]}
12... Bf5 {[%clk 0:04:19.7]} 13. Qe2 {[%clk 0:01:47.3]} 13... O-O {[%clk
0:04:18.4]} 14. Nf3 {[%clk 0:01:46.3]} 14... Nb6 {[%clk 0:04:17.5]} 15. Bb3
{[%clk 0:01:45.1]} 15... Qd7 {[%clk 0:04:12.1]} 16. O-O {[%clk 0:01:43.1]} 16...
Rfd8 {[%clk 0:04:11]} 17. Rfd1 {[%clk 0:01:25]} 17... Nc6 {[%clk 0:04:09.5]} 18.
d5 {[%clk 0:01:17.1]} 18... exd5 {[%clk 0:04:08.3]} 19. Nxd5 {[%clk 0:01:17]}
19... Nxd5 {[%clk 0:04:07.7]} 20. Rxd5 {[%clk 0:01:02]} 20... Qe7 {[%clk
0:04:02.7]} 21. Rad1 {[%clk 0:00:57.4]} 21... Be6 {[%clk 0:03:59.7]} 22. Rxd8+
{[%clk 0:00:54.9]} 22... Rxd8 {[%clk 0:03:59.6]} 23. Bxe6 {[%clk 0:00:49.1]}
23... Rxd1+ {[%clk 0:03:57]} 24. Qxd1 {[%clk 0:00:47.6]} 24... Qxe6 {[%clk
0:03:56.9]} 25. Qd6 {[%clk 0:00:43.6]} 25... Qxd6 {[%clk 0:03:50.2]} 26. exd6
{[%clk 0:00:43.5]} 26... Kf8 {[%clk 0:03:50.1]} 27. Kf1 {[%clk 0:00:40.2]} 27...
Ke8 {[%clk 0:03:49.2]} 28. Ke2 {[%clk 0:00:38.5]} 28... Kd7 {[%clk 0:03:49.1]}
29. Kd3 {[%clk 0:00:37.9]} 29... Kxd6 {[%clk 0:03:48.4]} 30. Nd4 {[%clk
0:00:36.7]} 30... Ne5+ {[%clk 0:03:47.4]} 31. Ke4 {[%clk 0:00:36.2]} 31... Nc4
{[%clk 0:03:46.5]} 32. b3 {[%clk 0:00:34.8]} 32... Nd2+ {[%clk 0:03:40.2]} 33.
Kd3 {[%clk 0:00:33.9]} 33... Nf1 {[%clk 0:03:38.8]} 34. Nf5+ {[%clk 0:00:32.8]}
34... Ke5 {[%clk 0:03:37.1]} 35. Nxg7 {[%clk 0:00:32.7]} 35... Nxh2 {[%clk
0:03:36.4]} 36. Nh5 {[%clk 0:00:30.8]} 36... Ng4 {[%clk 0:03:32.5]} 37. b4
{[%clk 0:00:27.7]} 37... Nxf2+ {[%clk 0:03:30.1]} 38. Ke3 {[%clk 0:00:27.6]}
38... Nd1+ {[%clk 0:03:29.2]} 39. Kd2 {[%clk 0:00:26.2]} 39... Nb2 {[%clk
0:03:26.9]} 40. Kc3 {[%clk 0:00:25.7]} 40... Na4+ {[%clk 0:03:26.1]} 41. Kc4
{[%clk 0:00:24.7]} 41... Nb6+ {[%clk 0:03:26]} 42. Kb5 {[%clk 0:00:24]} 42...
Nc8 {[%clk 0:03:21.4]} 43. Ka6 {[%clk 0:00:22.8]} 43... Kd6 {[%clk 0:03:10.2]}
44. Kb7 {[%clk 0:00:21.9]} 44... Kd7 {[%clk 0:03:10.1]} 45. Nf6+ {[%clk
0:00:20.4]} 45... Kd8 {[%clk 0:03:09.7]} 46. Nxh7 {[%clk 0:00:20.3]} 46... f5
{[%clk 0:03:09.6]} 47. Nf6 {[%clk 0:00:18.2]} 47... Nd6+ {[%clk 0:03:08.7]} 48.
Kxa7 {[%clk 0:00:17.2]} 48... Ke7 {[%clk 0:03:08.6]} 49. Nd5+ {[%clk 0:00:16]}
49... Ke6 {[%clk 0:03:08.5]} 50. Ne3 {[%clk 0:00:15.9]} 50... f4 {[%clk
0:03:07.5]} 51. Nf1 {[%clk 0:00:15.1]} 51... Kf5 {[%clk 0:03:06.2]} 52. a4
{[%clk 0:00:15]} 52... Kg4 {[%clk 0:03:06.1]} 53. b5 {[%clk 0:00:14.7]} 53...
Ne4 {[%clk 0:02:55.4]} 54. b6 {[%clk 0:00:14]} 54... Ng3 {[%clk 0:02:55.2]} 55.
Nxg3 {[%clk 0:00:13.2]} 55... Kxg3 {[%clk 0:02:55.1]} 56. b7 {[%clk 0:00:13.1]}
56... Kxg2 {[%clk 0:02:54.7]} 57. b8=Q {[%clk 0:00:12.5]} 57... f3 {[%clk
0:02:54.6]} 58. Qf4 {[%clk 0:00:10.9]} 58... f2 {[%clk 0:02:54.5]} 59. Qxf2+
{[%clk 0:00:09.9]} 59... Kxf2 {[%clk 0:02:54.4]} 60. a5 {[%clk 0:00:09.8]} 60...
Ke3 {[%clk 0:02:54.3]} 61. a6 {[%clk 0:00:09.7]} 61... Kd4 {[%clk 0:02:54.2]}
62. Kb6 {[%clk 0:00:09.6]} 62... Kd5 {[%clk 0:02:54.1]} 63. a7 {[%clk
0:00:09.5]} 63... Kd6 {[%clk 0:02:54]} 64. a8=Q {[%clk 0:00:09]} 64... Ke6
{[%clk 0:02:53.9]} 65. Qc6+ {[%clk 0:00:08.9]} 65... Ke7 {[%clk 0:02:53.5]} 66.
Kc5 {[%clk 0:00:08.8]} 66... Kf7 {[%clk 0:02:52.9]} 67. Qd6 {[%clk 0:00:08.7]}
67... Kg7 {[%clk 0:02:52.8]} 68. Kc6 {[%clk 0:00:08.6]} 68... Kh7 {[%clk
0:02:52.7]} 69. Qd7+ {[%clk 0:00:08.2]} 69... Kg6 {[%clk 0:02:51.8]} 70. Kd6
{[%clk 0:00:08.1]} 70... Kg5 {[%clk 0:02:51.3]} 71. Qe6 {[%clk 0:00:08]} 71...
Kf4 {[%clk 0:02:51.2]} 72. Qe5+ {[%clk 0:00:07.9]} 72... Kf3 {[%clk 0:02:51.1]}
73. Ke6 {[%clk 0:00:07.8]} 73... Kf2 {[%clk 0:02:51]} 74. Kf5 {[%clk 0:00:07.6]}
74... Kf1 {[%clk 0:02:50.9]} 75. Qe4 {[%clk 0:00:07.5]} 75... Kf2 {[%clk
0:02:49.9]} 76. Kf4 {[%clk 0:00:07.4]} 76... Kg1 {[%clk 0:02:48.7]} 77. Qc2
{[%clk 0:00:07.3]} 77... Kf1 {[%clk 0:02:48.1]} 78. Kf3 {[%clk 0:00:07.2]} 78...
Ke1 {[%clk 0:02:48]} 79. Qe2# {[%clk 0:00:06.6]} 1-0